[Event "Titled Tuesday Blitz January 10 Early 2023"]
[White "Yelisieiev, Yevhenii"]
[Black "Luxama, Jacques Muller"]
[WhiteFideId "14139642"]
[BlackFideId "11900113"]
[WhiteElo "2418"]
[BlackElo "1933"]
[Result "1/2-1/2"]
[Round "01"]
[TimeControl "180+2"]
[Date "2023.01.10"]
[WhiteClock "0:00:14"]
[BlackClock "0:00:30"]

1. d4 {[%clk 0:02:59]}  Nf6 {[%clk 0:02:58]} 2. Nf3 {[%clk 0:02:59]}  e6 {[%clk 0:02:58]} 3. c4 {[%clk 0:02:57]}  d5 {[%clk 0:02:58]} 4. Nc3 {[%clk 0:02:56]}  Bb4 {[%clk 0:02:57]} 5. Bg5 {[%clk 0:02:50]}  O-O {[%clk 0:02:56]} 6. e3 {[%clk 0:02:46]}  h6 {[%clk 0:02:55]} 7. Bh4 {[%clk 0:02:42]}  dxc4 {[%clk 0:02:54]} 8. Bxc4 {[%clk 0:02:40]}  c5 {[%clk 0:02:53]} 9. O-O {[%clk 0:02:37]}  cxd4 {[%clk 0:02:53]} 10. Nxd4 {[%clk 0:02:36]}  Be7 {[%clk 0:02:53]} 11. Qf3 {[%clk 0:02:25]}  Nbd7 {[%clk 0:02:43]} 12. Bg3 {[%clk 0:02:17]}  Qa5 {[%clk 0:02:38]} 13. Bb3 {[%clk 0:02:10]}  Ne5 {[%clk 0:02:33]} 14. Qe2 {[%clk 0:02:09]}  Bd7 {[%clk 0:02:27]} 15. Ndb5 {[%clk 0:01:58]}  Nc6 {[%clk 0:01:48]} 16. Rfd1 {[%clk 0:01:55]}  Rac8 {[%clk 0:01:41]} 17. Nd6 {[%clk 0:01:52]}  Bxd6 {[%clk 0:01:36]} 18. Rxd6 {[%clk 0:01:48]}  Rfd8 {[%clk 0:01:34]} 19. Rad1 {[%clk 0:01:47]}  Be8 {[%clk 0:01:33]} 20. h3 {[%clk 0:01:39]}  Rxd6 {[%clk 0:01:28]} 21. Rxd6 {[%clk 0:01:39]}  Rd8 {[%clk 0:01:28]} 22. Qd2 {[%clk 0:01:35]}  Rxd6 {[%clk 0:01:27]} 23. Qxd6 {[%clk 0:01:34]}  Qd8 {[%clk 0:01:25]} 24. Nb5 {[%clk 0:01:29]}  a6 {[%clk 0:01:16]} 25. Qxd8 {[%clk 0:01:05]}  Nxd8 {[%clk 0:01:16]} 26. Nd4 {[%clk 0:01:05]}  Nc6 {[%clk 0:01:13]} 27. Nxc6 {[%clk 0:00:57]}  Bxc6 {[%clk 0:01:12]} 28. f3 {[%clk 0:00:56]}  Kf8 {[%clk 0:01:12]} 29. e4 {[%clk 0:00:56]}  Ke7 {[%clk 0:01:11]} 30. Kf2 {[%clk 0:00:56]}  Nd7 {[%clk 0:01:08]} 31. Ke3 {[%clk 0:00:54]}  e5 {[%clk 0:01:04]} 32. Be1 {[%clk 0:00:52]}  Nc5 {[%clk 0:00:58]} 33. Bb4 {[%clk 0:00:52]}  b6 {[%clk 0:00:58]} 34. Bc2 {[%clk 0:00:28]}  f6 {[%clk 0:00:55]} 35. a4 {[%clk 0:00:22]}  a5 {[%clk 0:00:53]} 36. Bxc5+ {[%clk 0:00:21]}  bxc5 {[%clk 0:00:53]} 37. b3 {[%clk 0:00:18]}  Kd6 {[%clk 0:00:53]} 38. Bd3 {[%clk 0:00:19]}  Bd7 {[%clk 0:00:50]} 39. Bc4 {[%clk 0:00:19]}  g5 {[%clk 0:00:46]} 40. Kd3 {[%clk 0:00:17]}  Bc6 {[%clk 0:00:44]} 41. Kc3 {[%clk 0:00:16]}  Bb7 {[%clk 0:00:42]} 42. Bf1 {[%clk 0:00:16]}  Bc8 {[%clk 0:00:41]} 43. g3 {[%clk 0:00:16]}  Bb7 {[%clk 0:00:37]} 44. h4 {[%clk 0:00:16]}  Bc8 {[%clk 0:00:36]} 45. hxg5 {[%clk 0:00:15]}  hxg5 {[%clk 0:00:36]} 46. g4 {[%clk 0:00:15]}  Bb7 {[%clk 0:00:35]} 47. Be2 {[%clk 0:00:15]}  Bc8 {[%clk 0:00:34]} 48. Bb5 {[%clk 0:00:15]}  Be6 {[%clk 0:00:31]} 49. Bc4 {[%clk 0:00:15]}  Bc8 {[%clk 0:00:31]} 50. Bd5 {[%clk 0:00:14]}  Ba6 {[%clk 0:00:31]} 51. Bc4 {[%clk 0:00:14]}  Bc8 {[%clk 0:00:31]} 52. Bd3 {[%clk 0:00:14]}  Be6 {[%clk 0:00:30]} 53. Bc4 {[%clk 0:00:14]}  Bc8 {[%clk 0:00:30]} 1/2-1/2


[Site "https://www.chess.com"]

[Event "Titled Tuesday Blitz January 10 Early 2023"]
[White "Guzman, Christopher"]
[Black "Grot, Blazej"]
[WhiteFideId "6405096"]
[BlackFideId "21835845"]
[WhiteElo "2271"]
[BlackElo "1990"]
[Result "1-0"]
[Round "01"]
[TimeControl "180+2"]
[Date "2023.01.10"]
[WhiteClock "0:01:09"]
[BlackClock "0:00:11"]

1. e4 {[%clk 0:03:00]}  c5 {[%clk 0:02:59]} 2. Nf3 {[%clk 0:03:00]}  e6 {[%clk 0:02:59]} 3. d4 {[%clk 0:03:00]}  cxd4 {[%clk 0:03:00]} 4. Nxd4 {[%clk 0:03:00]}  Nc6 {[%clk 0:03:01]} 5. Nc3 {[%clk 0:03:00]}  Qc7 {[%clk 0:03:00]} 6. g3 {[%clk 0:03:00]}  a6 {[%clk 0:03:00]} 7. Bg2 {[%clk 0:03:00]}  Nf6 {[%clk 0:02:59]} 8. O-O {[%clk 0:03:00]}  Nxd4 {[%clk 0:02:59]} 9. Qxd4 {[%clk 0:03:01]}  Bc5 {[%clk 0:02:59]} 10. Bf4 {[%clk 0:03:01]}  d6 {[%clk 0:02:59]} 11. Qd3 {[%clk 0:03:01]}  h6 {[%clk 0:02:57]} 12. Na4 {[%clk 0:03:00]}  e5 {[%clk 0:02:37]} 13. Nxc5 {[%clk 0:02:48]}  dxc5 {[%clk 0:02:16]} 14. Bd2 {[%clk 0:02:45]}  Be6 {[%clk 0:02:13]} 15. Qc3 {[%clk 0:02:45]}  O-O {[%clk 0:02:07]} 16. a4 {[%clk 0:02:45]}  b6 {[%clk 0:02:05]} 17. h3 {[%clk 0:02:45]}  Rfd8 {[%clk 0:02:02]} 18. Be3 {[%clk 0:02:44]}  Rd7 {[%clk 0:01:59]} 19. f4 {[%clk 0:02:44]}  Nh5 {[%clk 0:01:48]} 20. Kh2 {[%clk 0:02:31]}  exf4 {[%clk 0:01:30]} 21. gxf4 {[%clk 0:02:30]}  Re7 {[%clk 0:01:23]} 22. Rf2 {[%clk 0:02:26]}  Rae8 {[%clk 0:01:15]} 23. Raf1 {[%clk 0:02:24]}  Bc8 {[%clk 0:01:14]} 24. e5 {[%clk 0:02:22]}  Bb7 {[%clk 0:01:09]} 25. Qd3 {[%clk 0:02:10]}  Bxg2 {[%clk 0:01:00]} 26. Rxg2 {[%clk 0:02:10]}  Qd7 {[%clk 0:00:57]} 27. Qe2 {[%clk 0:02:08]}  Qf5 {[%clk 0:00:50]} 28. Rfg1 {[%clk 0:02:05]}  Kh8 {[%clk 0:00:45]} 29. Qg4 {[%clk 0:02:04]}  Qxg4 {[%clk 0:00:42]} 30. hxg4 {[%clk 0:02:04]}  Nf6 {[%clk 0:00:41]} 31. Rd2 {[%clk 0:01:52]}  Ne4 {[%clk 0:00:27]} 32. Rd5 {[%clk 0:01:49]}  f6 {[%clk 0:00:26]} 33. Rgd1 {[%clk 0:01:42]}  fxe5 {[%clk 0:00:24]} 34. f5 {[%clk 0:01:42]}  Nf6 {[%clk 0:00:23]} 35. Kg3 {[%clk 0:01:39]}  Nxd5 {[%clk 0:00:22]} 36. Rxd5 {[%clk 0:01:40]}  Rb7 {[%clk 0:00:22]} 37. Kf3 {[%clk 0:01:38]}  Kg8 {[%clk 0:00:22]} 38. Ke4 {[%clk 0:01:38]}  Kf7 {[%clk 0:00:22]} 39. Rd6 {[%clk 0:01:37]}  a5 {[%clk 0:00:20]} 40. b3 {[%clk 0:01:36]}  Ree7 {[%clk 0:00:20]} 41. Rc6 {[%clk 0:01:31]}  Re8 {[%clk 0:00:20]} 42. Bc1 {[%clk 0:01:29]}  Ree7 {[%clk 0:00:20]} 43. Bb2 {[%clk 0:01:29]}  Re8 {[%clk 0:00:20]} 44. Bc3 {[%clk 0:01:28]}  Kg8 {[%clk 0:00:19]} 45. Rg6 {[%clk 0:01:27]}  Kf7 {[%clk 0:00:19]} 46. Bb2 {[%clk 0:01:18]}  Kf8 {[%clk 0:00:18]} 47. f6 {[%clk 0:01:16]}  gxf6 {[%clk 0:00:16]} 48. Rxf6+ {[%clk 0:01:16]}  Kg7 {[%clk 0:00:15]} 49. Rc6 {[%clk 0:01:16]}  Kf7 {[%clk 0:00:14]} 50. Rxh6 {[%clk 0:01:15]}  Rg8 {[%clk 0:00:15]} 51. Bxe5 {[%clk 0:01:12]}  Rxg4+ {[%clk 0:00:14]} 52. Kf5 {[%clk 0:01:12]}  Re7 {[%clk 0:00:12]} 53. Rh7+ {[%clk 0:01:12]}  Kg8 {[%clk 0:00:11]} 54. Rxe7 {[%clk 0:01:12]}  Rg2 {[%clk 0:00:10]} 55. Rg7+ {[%clk 0:01:06]}  Rxg7 {[%clk 0:00:09]} 56. Bxg7 {[%clk 0:01:07]}  Kxg7 {[%clk 0:00:10]} 57. Ke6 {[%clk 0:01:08]}  Kg6 {[%clk 0:00:09]} 58. Kd5 {[%clk 0:01:08]}  Kf5 {[%clk 0:00:10]} 59. Kc6 {[%clk 0:01:08]}  Ke4 {[%clk 0:00:11]} 60. Kxb6 {[%clk 0:01:08]}  Kd4 {[%clk 0:00:11]} 61. Kxa5 {[%clk 0:01:08]}  c4 {[%clk 0:00:11]} 62. bxc4 {[%clk 0:01:07]}  Kxc4 {[%clk 0:00:11]} 63. Kb6 {[%clk 0:01:07]}  Kc3 {[%clk 0:00:11]} 64. a5 {[%clk 0:01:08]}  Kxc2 {[%clk 0:00:11]} 65. a6 {[%clk 0:01:09]} 1-0


[Site "https://www.chess.com"]

[Event "Titled Tuesday Blitz January 10 Early 2023"]
[White "Samaganova, Aleksandra"]
[Black "Cruz Ravina, Francisco Javier"]
[WhiteFideId "13800221"]
[BlackFideId "2228939"]
[WhiteElo "1856"]
[BlackElo "2411"]
[Result "1-0"]
[Round "01"]
[TimeControl "180+2"]
[Date "2023.01.10"]
[WhiteClock "0:00:20"]
[BlackClock "0:00:25"]

1. c4 {[%clk 0:02:58]}  g6 {[%clk 0:02:58]} 2. Nc3 {[%clk 0:02:57]}  Bg7 {[%clk 0:02:58]} 3. g3 {[%clk 0:02:57]}  d6 {[%clk 0:02:52]} 4. Bg2 {[%clk 0:02:57]}  e5 {[%clk 0:02:52]} 5. e3 {[%clk 0:02:57]}  Ne7 {[%clk 0:02:52]} 6. Nge2 {[%clk 0:02:57]}  O-O {[%clk 0:02:51]} 7. O-O {[%clk 0:02:55]}  c5 {[%clk 0:02:51]} 8. d4 {[%clk 0:02:54]}  Nbc6 {[%clk 0:02:48]} 9. d5 {[%clk 0:02:50]}  Na5 {[%clk 0:02:37]} 10. b3 {[%clk 0:02:49]}  b6 {[%clk 0:02:32]} 11. Bb2 {[%clk 0:02:46]}  f5 {[%clk 0:02:30]} 12. Qc2 {[%clk 0:02:37]}  Rb8 {[%clk 0:02:29]} 13. Nb1 {[%clk 0:02:02]}  b5 {[%clk 0:02:25]} 14. Nd2 {[%clk 0:01:55]}  bxc4 {[%clk 0:02:19]} 15. bxc4 {[%clk 0:01:49]}  Bd7 {[%clk 0:02:13]} 16. Bc3 {[%clk 0:01:46]}  Qc7 {[%clk 0:02:07]} 17. Rfb1 {[%clk 0:01:44]}  Nb7 {[%clk 0:01:56]} 18. Rb2 {[%clk 0:01:42]}  Rfc8 {[%clk 0:01:55]} 19. Rab1 {[%clk 0:01:42]}  Nd8 {[%clk 0:01:54]} 20. h3 {[%clk 0:01:32]}  Nf7 {[%clk 0:01:53]} 21. Kh2 {[%clk 0:01:28]}  e4 {[%clk 0:01:44]} 22. Bxg7 {[%clk 0:01:27]}  Kxg7 {[%clk 0:01:43]} 23. Qc3+ {[%clk 0:01:26]}  Ne5 {[%clk 0:01:42]} 24. f4 {[%clk 0:01:20]}  exf3 {[%clk 0:01:40]} 25. Nxf3 {[%clk 0:01:20]}  Rxb2 {[%clk 0:01:38]} 26. Rxb2 {[%clk 0:01:19]}  Rb8 {[%clk 0:01:31]} 27. Nf4 {[%clk 0:00:57]}  Rxb2 {[%clk 0:01:19]} 28. Qxb2 {[%clk 0:00:58]}  Kg8 {[%clk 0:00:59]} 29. Nxe5 {[%clk 0:00:52]}  dxe5 {[%clk 0:00:58]} 30. Nd3 {[%clk 0:00:53]}  e4 {[%clk 0:00:56]} 31. Nf4 {[%clk 0:00:30]}  Kf7 {[%clk 0:00:49]} 32. Qh8 {[%clk 0:00:27]}  Qd6 {[%clk 0:00:42]} 33. Qxh7+ {[%clk 0:00:26]}  Kf8 {[%clk 0:00:42]} 34. Qh8+ {[%clk 0:00:21]}  Kf7 {[%clk 0:00:36]} 35. h4 {[%clk 0:00:20]}  Ng8 {[%clk 0:00:27]} 36. Qh7+ {[%clk 0:00:19]}  Kf8 {[%clk 0:00:25]} 37. Nxg6+ {[%clk 0:00:20]} 1-0


[Site "https://www.chess.com"]

[Event "Titled Tuesday Blitz January 10 Early 2023"]
[White "Mohamed Anees M"]
[Black "Marcziter, Dmitrii"]
[WhiteFideId "35065815"]
[BlackFideId "13900765"]
[WhiteElo "2315"]
[BlackElo "2234"]
[Result "0-1"]
[Round "01"]
[TimeControl "180+2"]
[Date "2023.01.10"]
[WhiteClock "0:00:27"]
[BlackClock "0:00:51"]

1. b3 {[%clk 0:02:57]}  e5 {[%clk 0:02:53]} 2. Bb2 {[%clk 0:02:58]}  Bd6 {[%clk 0:02:53]} 3. e4 {[%clk 0:02:58]}  Nf6 {[%clk 0:02:47]} 4. d3 {[%clk 0:02:58]}  O-O {[%clk 0:02:46]} 5. Nf3 {[%clk 0:02:58]}  Re8 {[%clk 0:02:45]} 6. g3 {[%clk 0:02:58]}  c6 {[%clk 0:02:44]} 7. Bg2 {[%clk 0:02:58]}  Bc7 {[%clk 0:02:45]} 8. O-O {[%clk 0:02:58]}  d5 {[%clk 0:02:44]} 9. Nbd2 {[%clk 0:02:58]}  a5 {[%clk 0:02:42]} 10. a4 {[%clk 0:02:58]}  Na6 {[%clk 0:02:40]} 11. Re1 {[%clk 0:02:54]}  dxe4 {[%clk 0:02:37]} 12. dxe4 {[%clk 0:02:51]}  Nc5 {[%clk 0:02:35]} 13. Nc4 {[%clk 0:02:41]}  Bg4 {[%clk 0:02:30]} 14. Qxd8 {[%clk 0:02:38]}  Raxd8 {[%clk 0:02:29]} 15. Nfxe5 {[%clk 0:02:39]}  Be6 {[%clk 0:02:17]} 16. f3 {[%clk 0:02:24]}  b5 {[%clk 0:02:15]} 17. axb5 {[%clk 0:02:16]}  cxb5 {[%clk 0:02:14]} 18. Nxa5 {[%clk 0:02:17]}  Bb6 {[%clk 0:02:14]} 19. Kh1 {[%clk 0:02:11]}  Rd2 {[%clk 0:02:13]} 20. Rec1 {[%clk 0:01:54]}  h5 {[%clk 0:02:10]} 21. Bc3 {[%clk 0:01:53]}  Rdd8 {[%clk 0:01:58]} 22. h4 {[%clk 0:01:50]}  Nfd7 {[%clk 0:01:57]} 23. Nec6 {[%clk 0:01:47]}  Rc8 {[%clk 0:01:55]} 24. Bb2 {[%clk 0:01:45]}  f6 {[%clk 0:01:52]} 25. Nd4 {[%clk 0:01:44]}  b4 {[%clk 0:01:46]} 26. Nxe6 {[%clk 0:01:43]}  Nxe6 {[%clk 0:01:46]} 27. Nc4 {[%clk 0:01:43]}  Bd4 {[%clk 0:01:46]} 28. Bxd4 {[%clk 0:01:40]}  Nxd4 {[%clk 0:01:46]} 29. Ra7 {[%clk 0:01:38]}  Nc5 {[%clk 0:01:44]} 30. Nd6 {[%clk 0:01:35]}  Ra8 {[%clk 0:01:44]} 31. Rc7 {[%clk 0:01:32]}  Red8 {[%clk 0:01:44]} 32. Rxc5 {[%clk 0:01:26]}  Rxd6 {[%clk 0:01:44]} 33. Rd1 {[%clk 0:01:27]}  Rad8 {[%clk 0:01:38]} 34. Rc4 {[%clk 0:01:26]}  Ne2 {[%clk 0:01:31]} 35. Rxd6 {[%clk 0:01:25]}  Rxd6 {[%clk 0:01:31]} 36. Kh2 {[%clk 0:01:22]}  Rd2 {[%clk 0:01:30]} 37. f4 {[%clk 0:01:12]}  Nd4 {[%clk 0:01:14]} 38. Kh3 {[%clk 0:01:09]}  Nxc2 {[%clk 0:01:12]} 39. e5 {[%clk 0:00:43]}  Ne3 {[%clk 0:01:12]} 40. Rc8+ {[%clk 0:00:43]}  Kf7 {[%clk 0:01:11]} 41. Bf3 {[%clk 0:00:41]}  g6 {[%clk 0:01:09]} 42. Rc7+ {[%clk 0:00:41]}  Kf8 {[%clk 0:01:06]} 43. exf6 {[%clk 0:00:41]}  Nf1 {[%clk 0:00:59]} 44. Bg2 {[%clk 0:00:41]}  Ne3 {[%clk 0:00:58]} 45. Be4 {[%clk 0:00:34]}  Ng4 {[%clk 0:00:53]} 46. Rc2 {[%clk 0:00:34]}  Nf2+ {[%clk 0:00:50]} 47. Kg2 {[%clk 0:00:30]}  Nxe4+ {[%clk 0:00:51]} 48. Rxd2 {[%clk 0:00:29]}  Nxd2 {[%clk 0:00:51]} 49. Kf2 {[%clk 0:00:27]}  Nxb3 {[%clk 0:00:51]} 50. Ke3 {[%clk 0:00:27]}  Nc5 {[%clk 0:00:50]} 51. Kd4 {[%clk 0:00:27]}  b3 {[%clk 0:00:51]} 52. Kc3 {[%clk 0:00:27]}  Kf7 {[%clk 0:00:51]} 0-1


[Site "https://www.chess.com"]

[Event "Titled Tuesday Blitz January 10 Early 2023"]
[White "Maksimenko, Viktor"]
[Black "Bobomurodova, Maftuna"]
[WhiteFideId "13710478"]
[BlackFideId "14207400"]
[WhiteElo "2196"]
[BlackElo "1946"]
[Result "1-0"]
[Round "01"]
[TimeControl "180+2"]
[Date "2023.01.10"]
[WhiteClock "0:00:47"]
[BlackClock "0:00:27"]

1. d4 {[%clk 0:02:31]}  Nf6 {[%clk 0:02:59]} 2. c4 {[%clk 0:02:31]}  e6 {[%clk 0:02:58]} 3. Nf3 {[%clk 0:02:31]}  Bb4+ {[%clk 0:02:55]} 4. Bd2 {[%clk 0:02:31]}  Be7 {[%clk 0:02:53]} 5. Nc3 {[%clk 0:02:28]}  O-O {[%clk 0:02:51]} 6. e4 {[%clk 0:02:28]}  d6 {[%clk 0:02:46]} 7. Bd3 {[%clk 0:02:27]}  b6 {[%clk 0:02:45]} 8. Qe2 {[%clk 0:02:23]}  Bb7 {[%clk 0:02:45]} 9. h4 {[%clk 0:02:21]}  c5 {[%clk 0:02:44]} 10. d5 {[%clk 0:02:12]}  Nbd7 {[%clk 0:02:39]} 11. dxe6 {[%clk 0:02:02]}  fxe6 {[%clk 0:02:38]} 12. Ng5 {[%clk 0:02:03]}  Qc8 {[%clk 0:02:21]} 13. Nxe6 {[%clk 0:02:02]}  Re8 {[%clk 0:02:21]} 14. Nd5 {[%clk 0:01:42]}  Nxd5 {[%clk 0:01:44]} 15. exd5 {[%clk 0:01:43]}  Ne5 {[%clk 0:01:39]} 16. Bf5 {[%clk 0:01:39]}  Qb8 {[%clk 0:01:25]} 17. f4 {[%clk 0:01:34]}  Nf7 {[%clk 0:01:24]} 18. O-O-O {[%clk 0:01:33]}  Bf6 {[%clk 0:01:22]} 19. g4 {[%clk 0:01:32]}  g6 {[%clk 0:01:21]} 20. Bc2 {[%clk 0:01:24]}  b5 {[%clk 0:01:20]} 21. g5 {[%clk 0:01:20]}  Bg7 {[%clk 0:01:12]} 22. Qh2 {[%clk 0:00:55]}  bxc4 {[%clk 0:01:05]} 23. Nxg7 {[%clk 0:00:55]}  Kxg7 {[%clk 0:01:05]} 24. Bc3+ {[%clk 0:00:56]}  Kg8 {[%clk 0:01:04]} 25. h5 {[%clk 0:00:56]}  Qc7 {[%clk 0:00:39]} 26. hxg6 {[%clk 0:00:55]}  hxg6 {[%clk 0:00:39]} 27. Bxg6 {[%clk 0:00:50]}  Kf8 {[%clk 0:00:35]} 28. Bf6 {[%clk 0:00:50]}  c3 {[%clk 0:00:27]} 29. Qh8+ {[%clk 0:00:46]}  Nxh8 {[%clk 0:00:27]} 30. Rxh8# {[%clk 0:00:47]} 1-0


[Site "https://www.chess.com"]

[Event "Titled Tuesday Blitz January 10 Early 2023"]
[White "Hercegovac, Neven"]
[Black "Royal, Shreyas"]
[WhiteFideId "2839135"]
[BlackFideId "448869"]
[WhiteElo "2168"]
[BlackElo "2438"]
[Result "0-1"]
[Round "01"]
[TimeControl "180+2"]
[Date "2023.01.10"]
[WhiteClock "0:00:02"]
[BlackClock "0:00:52"]

1. d4 {[%clk 0:02:45]}  d5 {[%clk 0:02:57]} 2. Bf4 {[%clk 0:02:33]}  Nf6 {[%clk 0:02:56]} 3. e3 {[%clk 0:02:33]}  c5 {[%clk 0:02:56]} 4. c3 {[%clk 0:02:32]}  Nc6 {[%clk 0:02:56]} 5. Nd2 {[%clk 0:02:31]}  Bf5 {[%clk 0:02:53]} 6. Ngf3 {[%clk 0:02:29]}  e6 {[%clk 0:02:53]} 7. Be2 {[%clk 0:02:24]}  Bd6 {[%clk 0:02:52]} 8. Bg3 {[%clk 0:02:23]}  O-O {[%clk 0:02:49]} 9. O-O {[%clk 0:02:12]}  Re8 {[%clk 0:02:40]} 10. Ne5 {[%clk 0:02:01]}  Qc7 {[%clk 0:02:36]} 11. Ndf3 {[%clk 0:01:57]}  Ne4 {[%clk 0:02:32]} 12. Nxc6 {[%clk 0:01:43]}  bxc6 {[%clk 0:02:31]} 13. Bxd6 {[%clk 0:01:41]}  Qxd6 {[%clk 0:02:31]} 14. dxc5 {[%clk 0:01:37]}  Nxc5 {[%clk 0:02:28]} 15. c4 {[%clk 0:01:34]}  Rab8 {[%clk 0:02:22]} 16. b3 {[%clk 0:01:27]}  e5 {[%clk 0:02:19]} 17. cxd5 {[%clk 0:01:27]}  cxd5 {[%clk 0:02:20]} 18. Rc1 {[%clk 0:01:14]}  Red8 {[%clk 0:02:09]} 19. Qd2 {[%clk 0:01:10]}  Ne4 {[%clk 0:02:08]} 20. Qa5 {[%clk 0:01:09]}  Rd7 {[%clk 0:01:54]} 21. Rfd1 {[%clk 0:01:08]}  Be6 {[%clk 0:01:49]} 22. Bb5 {[%clk 0:00:57]}  Rdb7 {[%clk 0:01:45]} 23. Bc6 {[%clk 0:00:53]}  Rc7 {[%clk 0:01:42]} 24. Ba4 {[%clk 0:00:41]}  Rxc1 {[%clk 0:01:09]} 25. Rxc1 {[%clk 0:00:42]}  a6 {[%clk 0:01:06]} 26. Rc6 {[%clk 0:00:31]}  Qa3 {[%clk 0:01:05]} 27. Qxa6 {[%clk 0:00:22]}  Qxa2 {[%clk 0:01:03]} 28. h3 {[%clk 0:00:15]}  Qxf2+ {[%clk 0:01:02]} 29. Kh2 {[%clk 0:00:12]}  Qg3+ {[%clk 0:01:01]} 30. Kg1 {[%clk 0:00:12]}  Bxh3 {[%clk 0:00:59]} 31. Rc2 {[%clk 0:00:08]}  Bg4 {[%clk 0:00:54]} 32. Nh2 {[%clk 0:00:04]}  Qxe3+ {[%clk 0:00:53]} 33. Kh1 {[%clk 0:00:02]}  Ng3# {[%clk 0:00:52]} 0-1


[Site "https://www.chess.com"]

[Event "Titled Tuesday Blitz January 10 Early 2023"]
[White "Guo, Josh"]
[Black "Maltsevskaya, Aleksandra"]
[WhiteFideId "2682427"]
[BlackFideId "24174041"]
[WhiteElo "2112"]
[BlackElo "2390"]
[Result "1-0"]
[Round "01"]
[TimeControl "180+2"]
[Date "2023.01.10"]
[WhiteClock "0:00:09"]
[BlackClock "0:00:46"]

1. e4 {[%clk 0:03:00]}  c5 {[%clk 0:02:51]} 2. Nf3 {[%clk 0:02:59]}  e6 {[%clk 0:02:51]} 3. d4 {[%clk 0:02:49]}  cxd4 {[%clk 0:02:52]} 4. Nxd4 {[%clk 0:02:50]}  Nc6 {[%clk 0:02:53]} 5. Nc3 {[%clk 0:02:50]}  Nf6 {[%clk 0:02:52]} 6. a3 {[%clk 0:02:47]}  d5 {[%clk 0:02:49]} 7. exd5 {[%clk 0:02:29]}  exd5 {[%clk 0:02:50]} 8. Be2 {[%clk 0:02:08]}  h6 {[%clk 0:02:46]} 9. O-O {[%clk 0:02:08]}  Bd6 {[%clk 0:02:45]} 10. Bf3 {[%clk 0:02:04]}  O-O {[%clk 0:02:44]} 11. h3 {[%clk 0:01:53]}  Bc7 {[%clk 0:02:43]} 12. Ndb5 {[%clk 0:01:38]}  Bb8 {[%clk 0:02:36]} 13. Nxd5 {[%clk 0:01:38]}  a6 {[%clk 0:02:35]} 14. Nbc3 {[%clk 0:01:33]}  Ne5 {[%clk 0:02:30]} 15. Bf4 {[%clk 0:01:21]}  Ra7 {[%clk 0:02:15]} 16. Re1 {[%clk 0:01:07]}  Nxf3+ {[%clk 0:02:11]} 17. Qxf3 {[%clk 0:01:08]}  Bxf4 {[%clk 0:02:07]} 18. Nxf4 {[%clk 0:01:03]}  b5 {[%clk 0:02:07]} 19. Rad1 {[%clk 0:01:02]}  Rd7 {[%clk 0:02:06]} 20. Rxd7 {[%clk 0:00:56]}  Qxd7 {[%clk 0:02:07]} 21. Nfd5 {[%clk 0:00:53]}  Nxd5 {[%clk 0:02:01]} 22. Qxd5 {[%clk 0:00:53]}  Qc7 {[%clk 0:02:00]} 23. Qe5 {[%clk 0:00:45]}  Qc6 {[%clk 0:01:58]} 24. Nd5 {[%clk 0:00:42]}  Kh8 {[%clk 0:01:57]} 25. Ne7 {[%clk 0:00:41]}  Qxc2 {[%clk 0:01:57]} 26. Nxc8 {[%clk 0:00:32]}  Rxc8 {[%clk 0:01:58]} 27. Re2 {[%clk 0:00:31]}  Qb1+ {[%clk 0:01:47]} 28. Kh2 {[%clk 0:00:31]}  f6 {[%clk 0:01:36]} 29. Qe6 {[%clk 0:00:28]}  Rc1 {[%clk 0:01:35]} 30. Qxa6 {[%clk 0:00:15]}  Rh1+ {[%clk 0:01:34]} 31. Kg3 {[%clk 0:00:15]}  Qg6+ {[%clk 0:01:34]} 32. Kf3 {[%clk 0:00:16]}  Qf5+ {[%clk 0:01:32]} 33. Kg3 {[%clk 0:00:14]}  Qg5+ {[%clk 0:01:33]} 34. Kf3 {[%clk 0:00:15]}  Qh5+ {[%clk 0:01:33]} 35. Ke3 {[%clk 0:00:14]}  Rd1 {[%clk 0:01:32]} 36. Qc8+ {[%clk 0:00:12]}  Kh7 {[%clk 0:01:29]} 37. Qc2+ {[%clk 0:00:12]}  f5 {[%clk 0:01:09]} 38. Qxd1 {[%clk 0:00:11]}  Qg5+ {[%clk 0:01:06]} 39. f4 {[%clk 0:00:12]}  Qg3+ {[%clk 0:01:05]} 40. Kd2 {[%clk 0:00:10]}  Qxf4+ {[%clk 0:01:06]} 41. Ke1 {[%clk 0:00:10]}  b4 {[%clk 0:01:01]} 42. axb4 {[%clk 0:00:10]}  Qxb4+ {[%clk 0:01:01]} 43. Qd2 {[%clk 0:00:11]}  Qb6 {[%clk 0:01:00]} 44. Rf2 {[%clk 0:00:10]}  Qe6+ {[%clk 0:00:58]} 45. Kf1 {[%clk 0:00:11]}  Qe4 {[%clk 0:00:58]} 46. Kg1 {[%clk 0:00:11]}  Kg6 {[%clk 0:00:56]} 47. Rf1 {[%clk 0:00:10]}  Qc4 {[%clk 0:00:52]} 48. Qf2 {[%clk 0:00:10]}  f4 {[%clk 0:00:46]} 49. Qxf4 {[%clk 0:00:09]} 1-0


[Site "https://www.chess.com"]

[Event "Titled Tuesday Blitz January 10 Early 2023"]
[White "Yaksin, Oleg"]
[Black "Srdanovic, Jovana"]
[WhiteFideId "24105880"]
[BlackFideId "954810"]
[WhiteElo "2389"]
[BlackElo "2058"]
[Result "1-0"]
[Round "01"]
[TimeControl "180+2"]
[Date "2023.01.10"]
[WhiteClock "0:01:46"]
[BlackClock "0:02:20"]

1. d4 {[%clk 0:02:47]}  d5 {[%clk 0:02:59]} 2. Nf3 {[%clk 0:02:47]}  Nf6 {[%clk 0:02:58]} 3. c4 {[%clk 0:02:46]}  c6 {[%clk 0:02:58]} 4. Qb3 {[%clk 0:02:45]}  e6 {[%clk 0:02:54]} 5. Bg5 {[%clk 0:02:43]}  Be7 {[%clk 0:02:54]} 6. Nc3 {[%clk 0:02:43]}  O-O {[%clk 0:02:54]} 7. e3 {[%clk 0:02:44]}  a6 {[%clk 0:02:53]} 8. Bd3 {[%clk 0:02:31]}  dxc4 {[%clk 0:02:46]} 9. Qxc4 {[%clk 0:02:28]}  b5 {[%clk 0:02:42]} 10. Qb3 {[%clk 0:02:28]}  c5 {[%clk 0:02:40]} 11. Qc2 {[%clk 0:02:23]}  h6 {[%clk 0:02:37]} 12. Bxf6 {[%clk 0:02:22]}  Bxf6 {[%clk 0:02:37]} 13. dxc5 {[%clk 0:02:21]}  b4 {[%clk 0:02:37]} 14. Ne4 {[%clk 0:02:20]}  Be7 {[%clk 0:02:32]} 15. O-O {[%clk 0:02:19]}  Bb7 {[%clk 0:02:32]} 16. Rfd1 {[%clk 0:02:18]}  Qc7 {[%clk 0:02:31]} 17. Rac1 {[%clk 0:02:16]}  Nc6 {[%clk 0:02:29]} 18. Nd6 {[%clk 0:02:12]}  Rad8 {[%clk 0:02:24]} 19. Nxb7 {[%clk 0:01:54]}  Qxb7 {[%clk 0:02:25]} 20. Be4 {[%clk 0:01:54]}  f5 {[%clk 0:02:24]} 21. Bxc6 {[%clk 0:01:53]}  Qxc6 {[%clk 0:02:25]} 22. Nd4 {[%clk 0:01:53]}  Qc8 {[%clk 0:02:23]} 23. Qc4 {[%clk 0:01:51]}  Rd5 {[%clk 0:02:20]} 24. Nxe6 {[%clk 0:01:46]} 1-0


[Site "https://www.chess.com"]